Cogmind - Beta 9.6 @@@ ROGUE MODE // 2020.04.24 @ 20:54:10 Player: Sleece Result: Destroyed by as-73342 with Assembled Maul Performance ------------- Evolutions (0) 0 Regions Visited (2) 400 Robots Destroyed (11) 55 Value Destroyed (95) 95 Prototype IDs (0) 0 Alien Tech Used (0) 0 Bonus (0) 0 TOTAL SCORE: 550 Bonus ------- None Cogmind --------- Core Integrity 0/250 Matter 165/300 Energy 58/100 System Corruption 17% Temperature Cool (0) Movement Treading (160) Location -10/Mines Parts ------- > --- POWER (1) -------- (None) > --- PROPULSION (2) --- Improved Treads > --- UTILITY (2) ------ (None) > --- WEAPON (2) ------- (None) > --- INVENTORY (4) ---- (None) Peak State ------------ > --- POWER ------------ Light Ion Engine > --- PROPULSION ------- Improved Treads Improved Treads > --- UTILITY ---------- Improved Signal Interpreter Improved Terrain Scanner > --- WEAPON ----------- Medium Laser Light Cannon > --- INVENTORY -------- Ion Engine Aluminum Leg Assault Rifle Grenade Launcher [Rating: 11] Favorites ----------- Power Light Ion Engine Engine Light Ion Engine Propulsion Improved Treads Treads Improved Treads Leg Aluminum Leg Utility Improved Signal Interpreter Device Improved Terrain Scanner Processor Improved Signal Interpreter Weapon Medium Laser Energy Gun Medium Laser Ballistic Gun Assault Rifle Ballistic Cannon Light Cannon Launcher Grenade Launcher Build | -11 -10 -10 ------- Run | Scr Mat Min Slots Evolved . | . . . Power . | . . . Propulsion . | . . . Utility . | . . . Weapon . | . . . Parts Attached 19 | 6 7 6 Power 3 | 1 1 1 Engine 3 | 1 1 1 Core . | . . . Reactor . | . . . Propulsion 5 | 2 2 1 Treads 3 | . 2 1 Leg 2 | 2 . . Wheel . | . . . Hover . | . . . Flight . | . . . Utility 3 | . 3 . Device 1 | . 1 . Storage . | . . . Processor 2 | . 2 . Hackware . | . . . Protection . | . . . Artifact . | . . . Weapon 8 | 3 1 4 Energy Gun 3 | 2 . 1 Energy Cannon . | . . . Ballistic Gun 2 | 1 . 1 Ballistic Cannon 2 | . 1 1 Launcher 1 | . . 1 Special Weapon . | . . . Impact Weapon . | . . . Slashing Weapon . | . . . Piercing Weapon . | . . . Special Melee Weapon . | . . . Unidentified Prototypes . | . . . Parts Lost 10 | . . 10 Power 2 | . . 2 Propulsion 2 | . . 2 Utility 2 | . . 2 Weapon 4 | . . 4 Highest Loss Streak 10 | . . 10 Average Slot Usage (%) 87 | . 91 74 Engine 12 | . 14 8 Treads 18 | . 17 22 Leg 7 | . 8 . Device 9 | . 9 8 Processor 11 | . 11 11 Energy Gun 12 | . 14 5 Ballistic Gun 2 | . 2 2 Ballistic Cannon 11 | . 11 11 Naked Turns . | . . . Heaviest Build 9 | 7 9 9 Greatest Support 46 | 20 46 46 Greatest Overweight (x) . | . . . Average Overweight (x) . | . . . Largest Inventory Capacity 4 | 4 4 4 Average Capacity 4 | 4 4 4 Most Carried 4 | 4 4 4 Average Carried 2 | . 3 3 Final Capacity 4 | 4 4 4 Final Carried 4 | 4 4 . Class Distribution -------------------- 100% | Mutant Dominant Class ---------------- Mutant | -10/Materials Mutant | -10/Mines Resources | -11 -10 -10 ----------- Run | Scr Mat Min Matter Collected 314 | 272 42 . Remotely . | . . . Salvage Created 160 | 46 86 28 Parts 14 | 3 11 . Haulers Intercepted . | . . . Recyclers Shooed . | . . . Parts Field Recycled . | . . . Retrieved Matter . | . . . Parts Self-Destructed . | . . . Prevented . | . . . Kills | -11 -10 -10 ------- Run | Scr Mat Min Combat Hostiles Destroyed 9 | 1 4 4 Guns 3 | 1 2 . Cannons 2 | . 2 . AOE 4 | . . 4 Classes Destroyed 5 | 1 3 1 Builder 1 | . 1 . Watcher 1 | . 1 . Swarmer 4 | . 4 . Grunt 1 | 1 . . Assembled 4 | . . 4 Best Kill Streak 4 | 1 4 4 Combat Bots Only 4 | 1 3 4 Max Kills in Single Turn 3 | 1 2 3 Gunslinging . | . . . Exploded 3 | . . 3 Melee . | . . . Uniques/NPCs Destroyed . | . . . Combat | -11 -10 -10 -------- Run | Scr Mat Min Damage Taken 1192 | 53 196 943 Core 269 | 21 57 191 Absorbed by Shields . | . . . Core Remaining (%) 91 | 91 . . Volleys Fired 25 | 4 15 6 Largest 2 | 2 2 2 Hottest 85 | 70 85 85 Shots Fired 42 | 8 24 10 Gun 21 | 8 9 4 Cannon 19 | . 15 4 Launcher 2 | . . 2 Special . | . . . Kinetic 25 | 4 15 6 Thermal 15 | 4 9 2 Explosive 2 | . . 2 Electromagnetic . | . . . Robot Hit Streak 4 | 3 4 2 Robot Miss Streak 3 | 1 3 2 Penetration Max . | . . . Secondary Targets . | . . . Shots Hit Robots 21 | 5 12 4 Core Hits 16 | 2 6 8 Critical Hits . | . . . Critical Kills . | . . . Critical Parts Destroyed . | . . . Melee Attacks . | . . . Impact . | . . . Slashing . | . . . Piercing . | . . . Sneak Attacks . | . . . Combat Hostiles . | . . . Follow-up Attacks . | . . . Damage Inflicted 573 | 79 190 304 Guns 151 | 79 61 11 Cannons 146 | . 129 17 Explosions 276 | . . 276 Melee . | . . . Ramming . | . . . Kinetic 185 | 28 129 28 Thermal 112 | 51 61 . Explosive 276 | . . 276 Electromagnetic . | . . . Impact . | . . . Slashing . | . . . Piercing . | . . . Highest Corruption 17 | . . 17 Average Corruption 9 | . . 9 Corruption Purged . | . . . Effects 1 | . . 1 Parts Rejected 1 | . . 1 Overload Shots . | . . . Overflow Damage 19 | . 1 18 Projectiles 1 | . 1 . Explosions 18 | . . 18 Melee . | . . . Knockbacks 1 | . . 1 Impact . | . . . Kinetic 1 | . . 1 Secondary . | . . . Self-Inflicted Damage 37 | . . 37 Shots 1 | . . 1 Rammed 1 | . . 1 Targets Rammed 1 | . . 1 Kicked . | . . . Crushed . | . . . Highest Temperature 144 | 60 144 44 Average Temperature 45 | 32 54 22 Received Heat Transfer 70 | 30 . 40 Siege Activations . | . . . Robots Corrupted . | . . . Combat Hostiles . | . . . Parts Fried . | . . . Impact Corruptions . | . . . Robots Melted . | . . . Combat Hostiles . | . . . Parts Melted . | . . . Heat Transferred 333 | 148 185 . Parts Sabotaged . | . . . Parts Stolen . | . . . Parts Stripped . | . . . Power Chain Reactions . | . . . Missiles Intercepted . | . . . Alert | -11 -10 -10 ------- Run | Scr Mat Min Peak Influence 125 | 20 125 48 Average Influence 35 | 3 53 32 Maximum Alert Level . | . . . Low Security (%) 100 | 100 100 100 Level 1 . | . . . Level 2 . | . . . Level 3 . | . . . Level 4 . | . . . Level 5 . | . . . High Security . | . . . Max Security . | . . . Squads Dispatched . | . . . Investigation . | . . . Extermination . | . . . Reinforcement . | . . . Assault . | . . . Garrison . | . . . Intercept . | . . . Construction Impeded . | . . . Haulers Reinforced . | . . . Stealth | -11 -10 -10 --------- Run | Scr Mat Min Distress Signals . | . . . Communications Jammed . | . . . Distress Signals . | . . . Times Spotted 20 | 1 7 12 Peak Tracking Total 12 | 1 5 12 Tactical Retreats 1 | . 1 . Traps | -11 -10 -10 ------- Run | Scr Mat Min Traps Triggered . | . . . Indirectly . | . . . Trap Hack Attempts . | . . . Triggered . | . . . Disarmed . | . . . Reprogrammed . | . . . Reused . | . . . Traps Extracted . | . . . Installed . | . . . Triggered . | . . . Machines | -11 -10 -10 ---------- Run | Scr Mat Min Machines Disabled . | . . . Max in Single Turn . | . . . Machines Sabotaged . | . . . Garrisons Compromised . | . . . Overloaded Fab Kills . | . . . Fab Network Shutdowns . | . . . Hacking | -11 -10 -10 --------- Run | Scr Mat Min Machines Accessed . | . . . Terminals . | . . . Fabricators . | . . . Repair Stations . | . . . Recycling Units . | . . . Scanalyzers . | . . . Garrison Access . | . . . Total Hacks . | . . . Successful . | . . . Failed . | . . . Catastrophic . | . . . Database Lockouts . | . . . Manual . | . . . Terminals . | . . . Fabricators . | . . . Repair Stations . | . . . Recycling Units . | . . . Scanalyzers . | . . . Garrison Access . | . . . Terminal Hacks . | . . . Fabricator Hacks . | . . . Repair Station Hacks . | . . . Recycling Unit Hacks . | . . . Scanalyzer . | . . . Garrison Access Hacks . | . . . Unauthorized Hacks . | . . . Terminals . | . . . Fabricators . | . . . Repair Stations . | . . . Recycling Units . | . . . Scanalyzers . | . . . Garrison Access . | . . . Data Cores Recovered . | . . . Used . | . . . Hacking Detections . | . . . Full Trace Events . | . . . Feedback Events . | . . . Feedback Blocked . | . . . Robot Schematics Acquired . | . . . Robots Built . | . . . Matter . | . . . Time . | . . . Total Robot Build Rating . | . . . Part Schematics Acquired . | . . . Parts Built . | . . . Matter . | . . . Time . | . . . Total Part Build Rating . | . . . Parts Repaired . | . . . Time . | . . . Parts Recycled . | . . . Recycled Matter . | . . . Retrieved Matter . | . . . Retrieved Components . | . . . Parts Scanalyzed . | . . . Part Schematics Acquired . | . . . Parts Damaged . | . . . Bothacking | -11 -10 -10 ------------ Run | Scr Mat Min Used RIF Installer . | . . . Robots Hacked . | . . . Non-combat . | . . . Combat . | . . . Robot Hacks Applied . | . . . Relay Couplers Released . | . . . Robots Rewired . | . . . Allies Hacked . | . . . Hacks Repelled . | . . . Allies | -11 -10 -10 -------- Run | Scr Mat Min Total Allies . | . . . Largest Group . | . . . Highest-Rated Group . | . . . Highest-Rated Ally . | . . . Total Orders . | . . . Ally Attacks . | . . . Total Damage . | . . . Kills . | . . . Allies Corrupted . | . . . Allies Melted . | . . . Intel | -11 -10 -10 ------- Run | Scr Mat Min Robot Analysis Total . | . . . Derelict Logs Recovered . | . . . Drone Launches . | . . . Drone Recoveries . | . . . Exploration | -11 -10 -10 ------------- Run | Scr Mat Min Turns Passed 340 | 99 193 48 Spaces Moved 186 | 73 99 14 Core 18 | 18 . . Treads 64 | . 50 14 Legs 104 | 55 49 . Wheels . | . . . Hover . | . . . Flight . | . . . Fastest Speed 50 | 50 120 160 Average Speed 126 | 102 140 160 Slowest Speed 160 | 120 160 160 Overloaded Moves . | . . . Propulsion Burnouts . | . . . Robots Hopped . | . . . Cave-ins Triggered 1 | . . 1 Exploration Rate (%) 11 | 7 22 5 Regions Visited 2 Branch Regions 1 Pre-discovered Areas . | . . . Known Exits Taken 1 | . 1 . Unknown Exits Taken 1 | 1 . . Scrap Searched . | . . . Spaces Dug . | . . . Terrain Destroyed 21 | . . 21 Melee . | . . . Projectile 1 | . . 1 AOE 20 | . . 20 Actions | -11 -10 -10 --------- Run | Scr Mat Min Total 244 | 86 130 28 Wait 1 | . . 1 Move 184 | 72 98 14 Hop . | . . . Pick Up 7 | 4 3 . Fast Attach 11 | 5 5 1 Attach 4 | . . 4 Detach . | . . . Swap 4 | 1 2 1 Drop 7 | . 7 . Fire 25 | 4 15 6 Melee . | . . . Ram . | . . . Kick . | . . . Crush 1 | . . 1 Escape Stasis . | . . . Rewire . | . . . Trap . | . . . Miscellaneous . | . . . Route ------- -11/Scrapyard -10/Materials -10/Mines History --------- Turn | Location | Event 2 | -11/Scrapyard | Met Revision 17 66 | -11/Scrapyard | Discovered new exit (range 8) 100 | -11/Scrapyard | Entered Materials 251 | -10/Materials | Discovered new exit (range 15) 292 | -10/Materials | Identified exit to Mines 293 | -10/Materials | Entered Mines 294 | -10/Mines | Assembled infested the area 299 | -10/Mines | Assisted by a Guerilla fighting off Assembled 318 | -10/Mines | Build established: Mutant 331 | -10/Mines | Core integrity fell below 50% 336 | -10/Mines | System corruption reached 10% 339 | -10/Mines | Crushed by falling debris 339 | -10/Mines | Core integrity fell below 20% 341 | -10/Mines | Destroyed by as-73342 with Assembled Maul Last Messages --------------- 00323_ as-48380 destroyed. 00323_ as-28812 destroyed. 00325_ Grenade Launcher destroyed. 00325_ System corrupted by crushing effect (+1). 00328_ Imp. Treads destroyed. 00330_ System corrupted: Lgt. Cannon rejected. 00330_ Acquired Lgt. Cannon. 00332_ Imp. Treads destroyed. 00332_ System corrupted by crushing effect (+1). 00334_ Lgt. Cannon destroyed. 00335_ Med. Laser destroyed. 00335_ System corrupted by crushing effect (+4). 00335_ Lgt. Ion Engine destroyed. 00338_ Imp. Signal Interpreter destroyed. 00338_ System corrupted by crushing effect (+5). 00339_ The unstable cave ceiling collapses. 00339_ Crushed by falling debris. [Achievement: Unlikely Earthworm] 00339_ Assault Rifle destroyed. 00340_ Slammed into as-07960. Map ----- +----------------------------------------------------+ | | | | | | | | | | | | | | | | | | | | | | | | | | | | | ???????????????????#???????????????? | | ??????????????##???????##########??? | | ???????????????????????# #??? | | ???????????????????????# ! #??? | | ???????????????????????# %= #??? | | ??????????????????###### """ #??? | | ??????????????????# * """ #??? | | ??????????????????#= ### """ #??? | | ??????????????????#% ?## #??? | | ?????????????#???##! #a# #######??? | | ?????????????????# a aa##???????? | | ?????????????????# a a@a#???????? | | ???????????#????## % #aa##???????? | | ????????????????# ######????????? | | ????????????????## ????????????????? | | ???????????????????????????????? ??? | | ???????????????????????????????????? | | ???????????????????????????????????? | | ???????????????????????????????????? | | ?????????????????????????????????#?? | | ???????????????????????????????????? | | ????????????????????????? ?????????? | | ???????????????????????????????????? | | ???????????????????????????????????? | | ????????????????????#????#?????????? | | ???????????????????????????????????? | | ???????????????????????????????????? | | ???????????????????????????????????? | | ???????????????????????????????????? | | ???????????????????????????????????? | | ???????????????????????????????????? | | ???????????????????????????????????? | | ???????????????????????????????????? | | ???????????????????????????????????? | | ???????????????????????????????????? | | ???????????????????????????????????? | +----------------------------------------------------+ Best States ------------- Heat Dissipation 25 Energy Generation 10 Energy Capacity 125 Matter Stores 300 Matter Capacity 300 Sight Range 16 Terrain Scan Range 16 Terrain Scan Density 10 Evasion (%) 50 Recoil Reduction 2 Item Schematics ----------------- None Robot Schematics ------------------ None Fabricated ------------ Nothing Alien Tech Used ----------------- None Achievements -------------- Unlikely Earthworm Challenges ------------ None Game ------ Seed SignalLightpackBuckler Manual? 0 Play Time 00:06:46 Cumulative 1.1 hours Start 2020.04.24 @ 20:45:18 End 2020.04.24 @ 20:54:10 Sessions 1 Manual Loads 0 Difficulty Rogue Special Mode None Game No. 3 Rogue 3 Adventurer 0 Explorer 0 Win Type - Total 0 Types 0/0/0/0/0/0/0 Lore% 5 Gallery% 10 Achievement% 10 Wizard Run 0 Options --------- ASCII 0 Keyboard 0 Movement Mouse Keybinds 0 Fullscreen 2 Font 24/Crisp Map View 76x50 Tactical HUD 1 Map Filters NONE Filters NONE Steam 1 RUN: 97f45d15-1e00-4d5b-83a7-aa7c2789312a